[Event "*** Titled Tuesday Blitz"]
[Site "Chess.com"]
[Date "2020.11.03"]
[Round "11"]
[White "Alindsay211"]
[Black "BJthechessgod"]
[Result "0-1"]
[WhiteElo "2442"]
[BlackElo "2331"]
[TimeControl "180+1"]
[EndTime "12:11:07 PST"]
[Termination "BJthechessgod won by resignation"]

1. c4 {[%clk 0:03:00.2]} 1... Nf6 {[%clk 0:01:39.9]} 2. Nc3 {[%clk 0:02:58.1]}
2... e6 {[%clk 0:01:39.6]} 3. d4 {[%clk 0:02:57.1]} 3... Bb4 {[%clk 0:01:38.6]}
4. e3 {[%clk 0:02:55.5]} 4... O-O {[%clk 0:01:38.5]} 5. Ne2 {[%clk 0:02:54.3]}
5... d5 {[%clk 0:01:38.7]} 6. cxd5 {[%clk 0:02:52.2]} 6... Nxd5 {[%clk
0:01:38.7]} 7. g3 {[%clk 0:02:51.1]} 7... b6 {[%clk 0:01:37.7]} 8. Bg2 {[%clk
0:02:50]} 8... Bb7 {[%clk 0:01:34.4]} 9. e4 {[%clk 0:02:48]} 9... Nxc3 {[%clk
0:01:31.9]} 10. bxc3 {[%clk 0:02:46.1]} 10... Be7 {[%clk 0:01:32.3]} 11. O-O
{[%clk 0:02:45.4]} 11... c5 {[%clk 0:01:32.1]} 12. Be3 {[%clk 0:02:42.9]} 12...
cxd4 {[%clk 0:01:31.6]} 13. cxd4 {[%clk 0:02:42.1]} 13... Nd7 {[%clk 0:01:32.2]}
14. Qd2 {[%clk 0:02:40.7]} 14... Nf6 {[%clk 0:01:32.4]} 15. Nc3 {[%clk
0:02:32.1]} 15... Bb4 {[%clk 0:01:18.2]} 16. e5 {[%clk 0:02:00]} 16... Nd5
{[%clk 0:01:00.6]} 17. Bxd5 {[%clk 0:01:57.5]} 17... Bxd5 {[%clk 0:01:01.5]} 18.
Qd3 {[%clk 0:01:52.4]} 18... Bxc3 {[%clk 0:00:56.2]} 19. Qxc3 {[%clk 0:01:51.1]}
19... Rc8 {[%clk 0:00:57.1]} 20. Qd2 {[%clk 0:01:49.6]} 20... Bf3 {[%clk
0:00:52.5]} 21. Bf4 {[%clk 0:01:38.7]} 21... Qd5 {[%clk 0:00:49.3]} 22. Rac1
{[%clk 0:01:29.6]} 22... Bh1 {[%clk 0:00:29]} 23. f3 {[%clk 0:01:26.1]} 23...
Bxf3 {[%clk 0:00:26.5]} 24. Qe3 {[%clk 0:01:18.2]} 24... Be4 {[%clk 0:00:22.4]}
25. Rce1 {[%clk 0:01:08.7]} 25... Bg2 {[%clk 0:00:17.6]} 26. Rf2 {[%clk
0:01:03.8]} 26... Bh3 {[%clk 0:00:18.2]} 27. Qf3 {[%clk 0:01:02]} 27... Qxf3
{[%clk 0:00:13.5]} 28. Rxf3 {[%clk 0:01:01.6]} 28... Rc2 {[%clk 0:00:14.4]} 29.
Rf2 {[%clk 0:01:00.5]} 29... Rxf2 {[%clk 0:00:12.9]} 30. Kxf2 {[%clk 0:01:01.3]}
30... Rc8 {[%clk 0:00:13.8]} 31. Re2 {[%clk 0:01:01]} 31... Bf5 {[%clk
0:00:13.7]} 32. Rb2 {[%clk 0:00:55.1]} 32... h6 {[%clk 0:00:12]} 33. Be3 {[%clk
0:00:52.1]} 33... g5 {[%clk 0:00:11.9]} 34. Kf3 {[%clk 0:00:50.9]} 34... Kg7
{[%clk 0:00:12]} 35. g4 {[%clk 0:00:46.8]} 35... Bd3 {[%clk 0:00:09.5]} 36. h3
{[%clk 0:00:41.5]} 36... Bc4 {[%clk 0:00:09.5]} 37. Kf2 {[%clk 0:00:36]} 37...
Bd5 {[%clk 0:00:10.4]} 38. Kg3 {[%clk 0:00:31.6]} 38... Rc3 {[%clk 0:00:07.5]}
39. Kf2 {[%clk 0:00:30.3]} 39... Ra3 {[%clk 0:00:08.1]} 40. Re2 {[%clk
0:00:25.8]} 40... Rxa2 {[%clk 0:00:07.9]} 41. Rxa2 {[%clk 0:00:25.4]} 41... Bxa2
{[%clk 0:00:08.8]} 42. Ke2 {[%clk 0:00:24.4]} 42... Bc4+ {[%clk 0:00:08.9]} 43.
Kd2 {[%clk 0:00:24.1]} 43... a5 {[%clk 0:00:09.1]} 44. Bf2 {[%clk 0:00:21.5]}
44... b5 {[%clk 0:00:09.2]} 45. h4 {[%clk 0:00:21.3]} 45... b4 {[%clk
0:00:09.5]} 46. hxg5 {[%clk 0:00:20.1]} 46... hxg5 {[%clk 0:00:10.4]} 47. Kc2
{[%clk 0:00:20]} 47... a4 {[%clk 0:00:10.3]} 48. Kb2 {[%clk 0:00:19.8]} 48...
a3+ {[%clk 0:00:10.4]} 49. Kb1 {[%clk 0:00:18.6]} 49... b3 {[%clk 0:00:10.8]}
50. Be1 {[%clk 0:00:17.7]} 50... b2 {[%clk 0:00:11.2]} 51. Bc3 {[%clk
0:00:14.7]} 51... Bd3+ {[%clk 0:00:12.1]} 52. Ka2 {[%clk 0:00:14.5]} 52... b1=Q+
{[%clk 0:00:13]} 53. Kxa3 {[%clk 0:00:14.4]} 53... Bc4 {[%clk 0:00:13.9]} 0-1

[Event "*** Titled Tuesday Blitz"]
[Site "Chess.com"]
[Date "2020.11.03"]
[Round "11"]
[White "Aygehovit1992"]
[Black "RD4ever"]
[Result "1-0"]
[WhiteElo "2670"]
[BlackElo "2822"]
[TimeControl "180+1"]
[EndTime "12:11:08 PST"]
[Termination "Aygehovit1992 won on time"]

1. e4 {[%clk 0:03:00.9]} 1... e6 {[%clk 0:02:58.4]} 2. d4 {[%clk 0:03:01]} 2...
d5 {[%clk 0:02:59]} 3. Nc3 {[%clk 0:03:01.9]} 3... Nf6 {[%clk 0:02:54.5]} 4. e5
{[%clk 0:03:01.7]} 4... Nfd7 {[%clk 0:02:54.7]} 5. f4 {[%clk 0:03:02]} 5... c5
{[%clk 0:02:55.3]} 6. Nf3 {[%clk 0:03:02.9]} 6... Nc6 {[%clk 0:02:55.8]} 7. Be3
{[%clk 0:03:02.6]} 7... cxd4 {[%clk 0:02:46.7]} 8. Nxd4 {[%clk 0:03:03.5]} 8...
Bc5 {[%clk 0:02:47.4]} 9. Qd2 {[%clk 0:03:02.1]} 9... O-O {[%clk 0:02:47.6]} 10.
O-O-O {[%clk 0:03:01.2]} 10... a6 {[%clk 0:02:48.2]} 11. h4 {[%clk 0:03:01]}
11... Nxd4 {[%clk 0:02:47.9]} 12. Bxd4 {[%clk 0:03:01]} 12... b5 {[%clk
0:02:48.8]} 13. h5 {[%clk 0:02:54.4]} 13... b4 {[%clk 0:02:47.5]} 14. Ne2 {[%clk
0:02:50.8]} 14... a5 {[%clk 0:02:47.1]} 15. h6 {[%clk 0:02:42.8]} 15... g6
{[%clk 0:02:47]} 16. g4 {[%clk 0:02:43.2]} 16... Ba6 {[%clk 0:02:45.1]} 17. f5
{[%clk 0:02:43.5]} 17... Bxe2 {[%clk 0:02:24.7]} 18. Bxe2 {[%clk 0:02:44.4]}
18... Bxd4 {[%clk 0:02:25.1]} 19. Qxd4 {[%clk 0:02:45]} 19... Qc7 {[%clk
0:02:21.2]} 20. Bb5 {[%clk 0:02:36.1]} 20... Rac8 {[%clk 0:02:10]} 21. Rd2
{[%clk 0:02:23]} 21... Nc5 {[%clk 0:01:43.6]} 22. Kb1 {[%clk 0:01:10.7]} 22...
Qb6 {[%clk 0:01:39.3]} 23. Bd3 {[%clk 0:00:39.8]} 23... a4 {[%clk 0:01:25.7]}
24. Rf1 {[%clk 0:00:38.4]} 24... a3 {[%clk 0:00:33.6]} 25. Rdf2 {[%clk
0:00:27.7]} 25... Na4 {[%clk 0:00:24.7]} 26. Qxb6 {[%clk 0:00:23.6]} 26... Nxb6
{[%clk 0:00:25.6]} 27. bxa3 {[%clk 0:00:19.5]} 27... bxa3 {[%clk 0:00:25.1]} 28.
fxe6 {[%clk 0:00:16.3]} 28... fxe6 {[%clk 0:00:25.2]} 29. Rf6 {[%clk 0:00:09.8]}
29... Rb8 {[%clk 0:00:14.3]} 30. Kc1 {[%clk 0:00:08.9]} 30... Rxf6 {[%clk
0:00:09.7]} 31. Rxf6 {[%clk 0:00:08.2]} 31... Re8 {[%clk 0:00:09.7]} 32. Bb5
{[%clk 0:00:08.2]} 32... Re7 {[%clk 0:00:10.1]} 33. Kd2 {[%clk 0:00:08.5]} 33...
Na8 {[%clk 0:00:09]} 34. Kc3 {[%clk 0:00:06.7]} 34... Nc7 {[%clk 0:00:09.2]} 35.
Bc6 {[%clk 0:00:05.5]} 35... Rf7 {[%clk 0:00:03.5]} 36. Rxf7 {[%clk 0:00:03]}
36... Kxf7 {[%clk 0:00:04.4]} 37. Kd4 {[%clk 0:00:03.7]} 37... g5 {[%clk
0:00:04.1]} 38. c4 {[%clk 0:00:03.7]} 38... dxc4 {[%clk 0:00:03.7]} 39. Kxc4
{[%clk 0:00:04.6]} 39... Kg6 {[%clk 0:00:04.5]} 40. Kc5 {[%clk 0:00:04.2]} 40...
Kxh6 {[%clk 0:00:03]} 41. Kd6 {[%clk 0:00:04.6]} 41... Na6 {[%clk 0:00:03.3]}
42. Kxe6 {[%clk 0:00:04.4]} 42... Nb4 {[%clk 0:00:02.7]} 43. Bd5 {[%clk
0:00:03.4]} 43... Nxd5 {[%clk 0:00:02.9]} 44. Kxd5 {[%clk 0:00:03.6]} 44... Kg6
{[%clk 0:00:03]} 45. Kd6 {[%clk 0:00:03.5]} 45... h5 {[%clk 0:00:02.7]} 46.
gxh5+ {[%clk 0:00:04.4]} 1-0

[Event "*** Titled Tuesday Blitz"]
[Site "Chess.com"]
[Date "2020.11.03"]
[Round "11"]
[White "ChronicUnhappiness"]
[Black "TokChess"]
[Result "1-0"]
[WhiteElo "2378"]
[BlackElo "2451"]
[TimeControl "180+1"]
[EndTime "12:11:10 PST"]
[Termination "ChronicUnhappiness won on time"]

1. c4 {[%clk 0:03:00.9]} 1... c6 {[%clk 0:02:57.9]} 2. d4 {[%clk 0:02:57.5]}
2... Nf6 {[%clk 0:02:57.6]} 3. Nf3 {[%clk 0:02:58.4]} 3... d5 {[%clk 0:02:57.3]}
4. e3 {[%clk 0:02:57.8]} 4... Bg4 {[%clk 0:02:56.3]} 5. Nc3 {[%clk 0:02:57.1]}
5... e6 {[%clk 0:02:55.8]} 6. h3 {[%clk 0:02:56.8]} 6... Bxf3 {[%clk 0:02:55.5]}
7. Qxf3 {[%clk 0:02:56.5]} 7... Nbd7 {[%clk 0:02:56.4]} 8. cxd5 {[%clk 0:02:54]}
8... exd5 {[%clk 0:02:56]} 9. Bd3 {[%clk 0:02:53.4]} 9... Bd6 {[%clk 0:02:56]}
10. O-O {[%clk 0:02:52.7]} 10... O-O {[%clk 0:02:54.5]} 11. Bd2 {[%clk
0:02:51.8]} 11... Re8 {[%clk 0:02:53.9]} 12. Rfe1 {[%clk 0:02:49.5]} 12... Qe7
{[%clk 0:02:46.2]} 13. e4 {[%clk 0:02:48.7]} 13... dxe4 {[%clk 0:02:43.4]} 14.
Nxe4 {[%clk 0:02:47.8]} 14... Nxe4 {[%clk 0:02:42.4]} 15. Rxe4 {[%clk
0:02:46.9]} 15... Qf6 {[%clk 0:02:38.6]} 16. Qe2 {[%clk 0:02:42.1]} 16... Rxe4
{[%clk 0:02:32.5]} 17. Qxe4 {[%clk 0:02:41.7]} 17... Nf8 {[%clk 0:02:32.5]} 18.
Re1 {[%clk 0:02:20.8]} 18... Rd8 {[%clk 0:02:24.3]} 19. Bc3 {[%clk 0:01:56.5]}
19... Qg5 {[%clk 0:01:46.8]} 20. Bc4 {[%clk 0:01:48.5]} 20... Rd7 {[%clk
0:01:14.2]} 21. Qe8 {[%clk 0:01:19.1]} 21... Re7 {[%clk 0:01:11.8]} 22. Rxe7
{[%clk 0:01:11.4]} 22... Qxe7 {[%clk 0:01:12.7]} 23. Qxe7 {[%clk 0:01:04.9]}
23... Bxe7 {[%clk 0:01:13.6]} 24. d5 {[%clk 0:01:05.6]} 24... c5 {[%clk
0:01:04.4]} 25. Be5 {[%clk 0:00:57.3]} 25... Nd7 {[%clk 0:01:03.7]} 26. Bc7
{[%clk 0:00:47.8]} 26... Bf6 {[%clk 0:00:55.4]} 27. Bb5 {[%clk 0:00:33.8]} 27...
Be5 {[%clk 0:00:51.5]} 28. Bxe5 {[%clk 0:00:24.6]} 28... Nxe5 {[%clk 0:00:51.3]}
29. f4 {[%clk 0:00:25.5]} 29... Ng6 {[%clk 0:00:44.4]} 30. g3 {[%clk 0:00:25]}
30... Kf8 {[%clk 0:00:37.9]} 31. d6 {[%clk 0:00:21.5]} 31... f6 {[%clk
0:00:24.1]} 32. Kf2 {[%clk 0:00:20.8]} 32... Kf7 {[%clk 0:00:22.4]} 33. Bc4+
{[%clk 0:00:20.3]} 33... Ke8 {[%clk 0:00:21]} 34. Be6 {[%clk 0:00:21.2]} 34...
Kd8 {[%clk 0:00:17.7]} 35. Ke3 {[%clk 0:00:20.1]} 35... Nf8 {[%clk 0:00:17.9]}
36. Bd5 {[%clk 0:00:13.9]} 36... Kd7 {[%clk 0:00:12.2]} 37. Bxb7 {[%clk
0:00:13.8]} 37... Kxd6 {[%clk 0:00:12.7]} 38. Be4 {[%clk 0:00:12.2]} 38... g6
{[%clk 0:00:12.2]} 39. h4 {[%clk 0:00:12]} 39... f5 {[%clk 0:00:11.7]} 40. Bd3
{[%clk 0:00:11.6]} 40... Ne6 {[%clk 0:00:12.6]} 41. Bc4 {[%clk 0:00:11.2]} 41...
Nd4 {[%clk 0:00:12.4]} 42. b4 {[%clk 0:00:11.3]} 42... Nc6 {[%clk 0:00:08.8]}
43. b5 {[%clk 0:00:09.8]} 43... Ne7 {[%clk 0:00:07.7]} 44. a4 {[%clk 0:00:08.3]}
44... Kc7 {[%clk 0:00:06]} 45. a5 {[%clk 0:00:08.2]} 45... Kd6 {[%clk
0:00:06.5]} 46. Bf7 {[%clk 0:00:07.7]} 46... Kc7 {[%clk 0:00:04]} 47. Kd3 {[%clk
0:00:08]} 47... Kd6 {[%clk 0:00:04.4]} 48. Kc4 {[%clk 0:00:08.2]} 48... Nc8
{[%clk 0:00:03.8]} 49. Bg8 {[%clk 0:00:07.4]} 49... Ne7 {[%clk 0:00:02.1]} 50.
Bxh7 {[%clk 0:00:06.7]} 1-0

[Event "*** Titled Tuesday Blitz"]
[Site "Chess.com"]
[Date "2020.11.03"]
[Round "11"]
[White "Mikasinski"]
[Black "Agoking701"]
[Result "0-1"]
[WhiteElo "2440"]
[BlackElo "2373"]
[TimeControl "180+1"]
[EndTime "12:11:10 PST"]
[Termination "Agoking701 won by resignation"]

1. e4 {[%clk 0:03:00.9]} 1... c6 {[%clk 0:02:57.2]} 2. d4 {[%clk 0:03:00.3]}
2... d5 {[%clk 0:02:58.1]} 3. e5 {[%clk 0:03:00.6]} 3... c5 {[%clk 0:02:55.3]}
4. dxc5 {[%clk 0:03:00.1]} 4... Nc6 {[%clk 0:02:53.5]} 5. Bb5 {[%clk 0:02:59.3]}
5... Bf5 {[%clk 0:02:48.9]} 6. Nc3 {[%clk 0:02:30.6]} 6... e6 {[%clk 0:02:48.9]}
7. h4 {[%clk 0:02:30.4]} 7... Qc7 {[%clk 0:02:32.8]} 8. Bxc6+ {[%clk 0:02:09.6]}
8... bxc6 {[%clk 0:02:30.6]} 9. g4 {[%clk 0:02:04.6]} 9... Qxe5+ {[%clk
0:02:24.8]} 10. Kf1 {[%clk 0:01:57.3]} 10... Be4 {[%clk 0:02:13]} 11. f3 {[%clk
0:01:56.2]} 11... Nf6 {[%clk 0:02:07.2]} 12. g5 {[%clk 0:01:49.7]} 12... Nh5
{[%clk 0:02:03]} 13. fxe4 {[%clk 0:01:47.2]} 13... Ng3+ {[%clk 0:02:00.5]} 14.
Kg2 {[%clk 0:01:47.6]} 14... Nxh1 {[%clk 0:01:56.3]} 15. Nf3 {[%clk 0:01:41]}
15... Qg3+ {[%clk 0:01:50.5]} 16. Kxh1 {[%clk 0:01:41.3]} 16... Qh3+ {[%clk
0:01:45.8]} 17. Nh2 {[%clk 0:01:37.6]} 17... Bxc5 {[%clk 0:01:38.5]} 18. Qg4
{[%clk 0:01:28.6]} 18... Qxg4 {[%clk 0:01:30.4]} 19. Nxg4 {[%clk 0:01:27.2]}
19... Rb8 {[%clk 0:01:20.1]} 20. a3 {[%clk 0:01:18.2]} 20... Ke7 {[%clk
0:01:17.9]} 21. Na4 {[%clk 0:01:05.8]} 21... Bb6 {[%clk 0:00:53.5]} 22. Bf4
{[%clk 0:01:02]} 22... Rb7 {[%clk 0:00:43.7]} 23. Be5 {[%clk 0:01:01.3]} 23...
Rg8 {[%clk 0:00:41.5]} 24. exd5 {[%clk 0:01:01.4]} 24... cxd5 {[%clk 0:00:40.1]}
25. Nxb6 {[%clk 0:01:01.1]} 25... Rxb6 {[%clk 0:00:38.3]} 26. Bd4 {[%clk
0:00:56.2]} 26... Rc6 {[%clk 0:00:36.7]} 27. c3 {[%clk 0:00:52.8]} 27... a6
{[%clk 0:00:35.4]} 28. b4 {[%clk 0:00:48.8]} 28... Rc4 {[%clk 0:00:25.7]} 29.
Ne5 {[%clk 0:00:48]} 29... Rc7 {[%clk 0:00:24.2]} 30. Nd3 {[%clk 0:00:47.5]}
30... f6 {[%clk 0:00:23.2]} 31. Rg1 {[%clk 0:00:32.7]} 31... Rcc8 {[%clk
0:00:12.3]} 32. gxf6+ {[%clk 0:00:18.8]} 32... gxf6 {[%clk 0:00:13.2]} 33. Rxg8
{[%clk 0:00:18.8]} 33... Rxg8 {[%clk 0:00:13.7]} 34. Nc5 {[%clk 0:00:19.5]}
34... e5 {[%clk 0:00:11.5]} 35. Bf2 {[%clk 0:00:19.6]} 35... Ra8 {[%clk
0:00:09.7]} 36. Kg2 {[%clk 0:00:19.9]} 36... f5 {[%clk 0:00:09.3]} 37. Kf3
{[%clk 0:00:17.9]} 37... Kf6 {[%clk 0:00:09.1]} 38. Nd7+ {[%clk 0:00:15.9]}
38... Ke6 {[%clk 0:00:08.7]} 39. Nb6 {[%clk 0:00:16.6]} 39... Rd8 {[%clk
0:00:07.4]} 40. a4 {[%clk 0:00:09.6]} 40... f4 {[%clk 0:00:07.9]} 41. b5 {[%clk
0:00:09.1]} 41... axb5 {[%clk 0:00:08.8]} 42. a5 {[%clk 0:00:09.6]} 42... Kf5
{[%clk 0:00:09.5]} 43. a6 {[%clk 0:00:08.5]} 43... e4+ {[%clk 0:00:09.6]} 44.
Ke2 {[%clk 0:00:09.1]} 44... b4 {[%clk 0:00:06.6]} 45. cxb4 {[%clk 0:00:08.4]}
45... d4 {[%clk 0:00:06.8]} 46. a7 {[%clk 0:00:04.5]} 46... d3+ {[%clk
0:00:05.9]} 47. Kd1 {[%clk 0:00:05]} 47... e3 {[%clk 0:00:04.9]} 48. a8=Q {[%clk
0:00:04.9]} 48... Rxa8 {[%clk 0:00:03.2]} 49. Nxa8 {[%clk 0:00:02.7]} 49... exf2
{[%clk 0:00:03.1]} 50. Kd2 {[%clk 0:00:01.8]} 50... f1=Q {[%clk 0:00:03.2]} 0-1

[Event "*** Titled Tuesday Blitz"]
[Site "Chess.com"]
[Date "2020.11.03"]
[Round "11"]
[White "GMTalks_Youtube"]
[Black "Supernotar"]
[Result "0-1"]
[WhiteElo "2603"]
[BlackElo "2839"]
[TimeControl "180+1"]
[EndTime "12:11:11 PST"]
[Termination "Supernotar won on time"]

1. e4 {[%clk 0:03:00.9]} 1... c6 {[%clk 0:02:54.9]} 2. d4 {[%clk 0:03:00.4]}
2... d5 {[%clk 0:02:54.4]} 3. exd5 {[%clk 0:03:00.9]} 3... cxd5 {[%clk
0:02:53.9]} 4. Bd3 {[%clk 0:03:01.1]} 4... Nc6 {[%clk 0:02:53.6]} 5. c3 {[%clk
0:03:00.3]} 5... Qc7 {[%clk 0:02:53.9]} 6. Ne2 {[%clk 0:03:00]} 6... Bg4 {[%clk
0:02:53]} 7. O-O {[%clk 0:02:59.8]} 7... Bh5 {[%clk 0:02:52.7]} 8. Qe1 {[%clk
0:02:58.9]} 8... e6 {[%clk 0:02:49.8]} 9. Bf4 {[%clk 0:02:58.5]} 9... Bd6 {[%clk
0:02:46.8]} 10. Bxd6 {[%clk 0:02:58.2]} 10... Qxd6 {[%clk 0:02:47.7]} 11. Nd2
{[%clk 0:02:57.7]} 11... Nf6 {[%clk 0:02:43.6]} 12. Ng3 {[%clk 0:02:55.8]} 12...
Bg6 {[%clk 0:02:42.4]} 13. Qe2 {[%clk 0:02:52.9]} 13... O-O {[%clk 0:02:41.3]}
14. Bxg6 {[%clk 0:02:48.8]} 14... hxg6 {[%clk 0:02:41.2]} 15. Nf3 {[%clk
0:02:49.7]} 15... Rab8 {[%clk 0:02:36.9]} 16. a4 {[%clk 0:02:48]} 16... a6
{[%clk 0:02:35.7]} 17. Ne5 {[%clk 0:02:45.4]} 17... b5 {[%clk 0:02:26.9]} 18.
axb5 {[%clk 0:02:37.1]} 18... axb5 {[%clk 0:02:27.8]} 19. Ra6 {[%clk 0:02:35.9]}
19... Rfc8 {[%clk 0:02:27.7]} 20. b4 {[%clk 0:01:53.6]} 20... Nd7 {[%clk
0:02:24.9]} 21. Nd3 {[%clk 0:01:39.7]} 21... Nb6 {[%clk 0:02:18.8]} 22. Nc5
{[%clk 0:01:32.4]} 22... Nc4 {[%clk 0:02:19]} 23. Rfa1 {[%clk 0:01:28.8]} 23...
Qe7 {[%clk 0:02:06.7]} 24. Qf3 {[%clk 0:01:18.1]} 24... Rc7 {[%clk 0:02:01.7]}
25. Ne2 {[%clk 0:01:13.3]} 25... Ra7 {[%clk 0:01:59.4]} 26. Rxa7 {[%clk
0:01:11]} 26... Nxa7 {[%clk 0:02:00.3]} 27. Nf4 {[%clk 0:01:10.6]} 27... Nc6
{[%clk 0:01:55.9]} 28. Qe2 {[%clk 0:01:03.8]} 28... Qd6 {[%clk 0:01:49.7]} 29.
Nfd3 {[%clk 0:00:59.4]} 29... Qe7 {[%clk 0:01:41.7]} 30. g3 {[%clk 0:00:54.6]}
30... Qe8 {[%clk 0:01:35.4]} 31. Qa2 {[%clk 0:00:51]} 31... Ne7 {[%clk
0:01:31.7]} 32. Ne5 {[%clk 0:00:46.6]} 32... Nf5 {[%clk 0:01:22]} 33. Ned7
{[%clk 0:00:39.5]} 33... Rd8 {[%clk 0:01:19.2]} 34. Qa7 {[%clk 0:00:37.5]} 34...
e5 {[%clk 0:01:13.6]} 35. Re1 {[%clk 0:00:32.6]} 35... e4 {[%clk 0:01:11]} 36.
Qb7 {[%clk 0:00:31]} 36... Qe7 {[%clk 0:01:05.1]} 37. Qxd5 {[%clk 0:00:28.1]}
37... Nb6 {[%clk 0:00:58]} 38. Nxb6 {[%clk 0:00:13.9]} 38... Rxd5 {[%clk
0:00:58]} 39. Nxd5 {[%clk 0:00:13.9]} 39... Qd6 {[%clk 0:00:56.3]} 40. Nf4
{[%clk 0:00:13.5]} 40... Nh4 {[%clk 0:00:43.5]} 41. gxh4 {[%clk 0:00:11.8]}
41... Qxf4 {[%clk 0:00:41.5]} 42. Nxe4 {[%clk 0:00:12.5]} 42... Qxh4 {[%clk
0:00:38.5]} 43. Re3 {[%clk 0:00:12]} 43... g5 {[%clk 0:00:34.5]} 44. Ng3 {[%clk
0:00:10.5]} 44... Qf4 {[%clk 0:00:30.8]} 45. Kg2 {[%clk 0:00:10.1]} 45... g4
{[%clk 0:00:28.3]} 46. Re4 {[%clk 0:00:09.1]} 46... Qf3+ {[%clk 0:00:26.5]} 47.
Kg1 {[%clk 0:00:07.1]} 47... Qxc3 {[%clk 0:00:26.4]} 48. Rxg4 {[%clk 0:00:05.9]}
48... Qxb4 {[%clk 0:00:23.6]} 49. h3 {[%clk 0:00:06.4]} 49... Qe1+ {[%clk
0:00:20.4]} 50. Kg2 {[%clk 0:00:06.6]} 50... b4 {[%clk 0:00:20.8]} 51. d5 {[%clk
0:00:06.6]} 51... b3 {[%clk 0:00:19.3]} 52. Nf5 {[%clk 0:00:06.8]} 52... b2
{[%clk 0:00:15.9]} 0-1

[Event "*** Titled Tuesday Blitz"]
[Site "Chess.com"]
[Date "2020.11.03"]
[Round "11"]
[White "Oleksandr_Bortnyk"]
[Black "almo64"]
[Result "1-0"]
[WhiteElo "2912"]
[BlackElo "2693"]
[TimeControl "180+1"]
[EndTime "12:11:20 PST"]
[Termination "Oleksandr_Bortnyk won on time"]

1. e4 {[%clk 0:03:00.9]} 1... c5 {[%clk 0:02:59.2]} 2. c3 {[%clk 0:02:58.2]}
2... d5 {[%clk 0:02:57.7]} 3. exd5 {[%clk 0:02:58.3]} 3... Qxd5 {[%clk
0:02:58.3]} 4. d4 {[%clk 0:02:58.6]} 4... Nf6 {[%clk 0:02:59]} 5. Nf3 {[%clk
0:02:56.4]} 5... Bg4 {[%clk 0:02:59.2]} 6. Be2 {[%clk 0:02:55.3]} 6... e6 {[%clk
0:02:58.9]} 7. Be3 {[%clk 0:02:55.1]} 7... cxd4 {[%clk 0:02:58.8]} 8. cxd4
{[%clk 0:02:56]} 8... Nc6 {[%clk 0:02:58.6]} 9. Nc3 {[%clk 0:02:56]} 9... Qd6
{[%clk 0:02:59.1]} 10. h3 {[%clk 0:02:55.2]} 10... Bh5 {[%clk 0:02:58.9]} 11.
O-O {[%clk 0:02:55.2]} 11... Be7 {[%clk 0:02:58.8]} 12. a3 {[%clk 0:02:53.8]}
12... O-O {[%clk 0:02:56.7]} 13. Qb3 {[%clk 0:02:51]} 13... Rab8 {[%clk
0:02:50.1]} 14. Rfd1 {[%clk 0:02:49.1]} 14... Nd5 {[%clk 0:02:46.6]} 15. Ne4
{[%clk 0:02:48.2]} 15... Qc7 {[%clk 0:02:38.1]} 16. Rac1 {[%clk 0:02:40.4]}
16... Rfd8 {[%clk 0:02:33.3]} 17. Rd2 {[%clk 0:02:27.9]} 17... Bg6 {[%clk
0:02:15]} 18. Nc5 {[%clk 0:02:23.5]} 18... Nxe3 {[%clk 0:02:06.3]} 19. Qxe3
{[%clk 0:02:24.4]} 19... Bf6 {[%clk 0:02:00]} 20. Ne4 {[%clk 0:02:16.1]} 20...
Bxe4 {[%clk 0:01:48.6]} 21. Qxe4 {[%clk 0:02:17]} 21... Qb6 {[%clk 0:01:42]} 22.
Rcd1 {[%clk 0:02:12.5]} 22... Ne7 {[%clk 0:01:41.5]} 23. Bc4 {[%clk 0:02:10.3]}
23... Rbc8 {[%clk 0:01:39.8]} 24. Ba2 {[%clk 0:02:01.2]} 24... Nd5 {[%clk
0:01:40.1]} 25. g4 {[%clk 0:01:57.1]} 25... g6 {[%clk 0:01:37.8]} 26. h4 {[%clk
0:01:48.5]} 26... Qc7 {[%clk 0:01:36.8]} 27. h5 {[%clk 0:01:45.9]} 27... Bg7
{[%clk 0:01:33]} 28. g5 {[%clk 0:01:42.3]} 28... Ne7 {[%clk 0:01:16.3]} 29. Bxe6
{[%clk 0:01:31.8]} 29... fxe6 {[%clk 0:01:14.9]} 30. Qxe6+ {[%clk 0:01:32.7]}
30... Kf8 {[%clk 0:01:14.7]} 31. h6 {[%clk 0:01:27.1]} 31... Bh8 {[%clk
0:01:14.4]} 32. Ne5 {[%clk 0:01:27.4]} 32... Bxe5 {[%clk 0:01:01.9]} 33. dxe5
{[%clk 0:01:28.3]} 33... Rxd2 {[%clk 0:01:01]} 34. Qf6+ {[%clk 0:01:28.2]} 34...
Ke8 {[%clk 0:01:00.9]} 35. Qh8+ {[%clk 0:01:26.7]} 35... Kf7 {[%clk 0:00:54.5]}
36. e6+ {[%clk 0:01:21.7]} 36... Kxe6 {[%clk 0:00:45.9]} 37. Qf6+ {[%clk
0:01:22.6]} 37... Kd7 {[%clk 0:00:42.8]} 38. Rxd2+ {[%clk 0:01:23.5]} 38... Ke8
{[%clk 0:00:32.6]} 39. Qh8+ {[%clk 0:01:14.8]} 39... Kf7 {[%clk 0:00:32.8]} 40.
Qxh7+ {[%clk 0:01:04.7]} 40... Ke6 {[%clk 0:00:30.2]} 41. Re2+ {[%clk
0:01:05.1]} 41... Kd6 {[%clk 0:00:30.4]} 42. Qf7 {[%clk 0:00:55.1]} 42... Qc1+
{[%clk 0:00:28.9]} 43. Kh2 {[%clk 0:00:55.1]} 43... Nc6 {[%clk 0:00:08.7]} 44.
Qf6+ {[%clk 0:00:28.4]} 44... Kc7 {[%clk 0:00:09]} 45. h7 {[%clk 0:00:29.3]}
45... Qd1 {[%clk 0:00:08.1]} 46. Qg7+ {[%clk 0:00:12.3]} 46... Kb6 {[%clk
0:00:06.5]} 47. Re3 {[%clk 0:00:12.1]} 47... Qd6+ {[%clk 0:00:05.5]} 48. Kg1
{[%clk 0:00:11.1]} 48... Qd1+ {[%clk 0:00:04.8]} 49. Kh2 {[%clk 0:00:11.6]}
49... Qd6+ {[%clk 0:00:04.9]} 50. Rg3 {[%clk 0:00:12]} 50... Rf8 {[%clk
0:00:03.9]} 51. Kg1 {[%clk 0:00:03.3]} 51... Qd1+ {[%clk 0:00:04]} 52. Kg2
{[%clk 0:00:03.9]} 52... Qd5+ {[%clk 0:00:04.1]} 53. f3 {[%clk 0:00:04.5]} 53...
Qd2+ {[%clk 0:00:03.8]} 54. Kh3 {[%clk 0:00:05.1]} 54... Qd8 {[%clk 0:00:02.5]}
55. Rg4 {[%clk 0:00:03.4]} 1-0